[Event "*** Titled Tuesday 3|2 Blitz"]
[Site "Chess.com"]
[Date "2016.10.04"]
[Round "4"]
[White "Keranke"]
[Black "Ar4uha"]
[Result "1/2-1/2"]
[WhiteElo "2626"]
[BlackElo "2471"]
[TimeControl "180+2"]
[EndTime "11:49:58 PDT"]
[Termination "Game drawn by repetition"]

1. d4 {[%clk 0:03:02]} 1... Nf6 {[%clk 0:03:00.9]} 2. c4 {[%clk 0:03:02.8]} 2...
e6 {[%clk 0:03:02.2]} 3. g3 {[%clk 0:03:02.6]} 3... d5 {[%clk 0:03:01.9]} 4. Bg2
{[%clk 0:03:03.7]} 4... dxc4 {[%clk 0:03:02.7]} 5. Nf3 {[%clk 0:03:04.8]} 5...
Nbd7 {[%clk 0:03:02.8]} 6. Qa4 {[%clk 0:03:04.9]} 6... a6 {[%clk 0:03:03.8]} 7.
Qxc4 {[%clk 0:03:05.6]} 7... b5 {[%clk 0:03:05]} 8. Qc2 {[%clk 0:03:05.2]} 8...
Bb7 {[%clk 0:03:06.2]} 9. O-O {[%clk 0:03:06.5]} 9... c5 {[%clk 0:03:07.9]} 10.
a4 {[%clk 0:02:54.6]} 10... b4 {[%clk 0:02:50.5]} 11. Nbd2 {[%clk 0:02:52.5]}
11... Rc8 {[%clk 0:02:51.6]} 12. Qd3 {[%clk 0:02:32.1]} 12... Be7 {[%clk
0:02:50.1]} 13. b3 {[%clk 0:02:31]} 13... cxd4 {[%clk 0:02:41.7]} 14. Nxd4
{[%clk 0:02:10.3]} 14... Nc5 {[%clk 0:02:40.8]} 15. Qe3 {[%clk 0:02:11.1]} 15...
Bxg2 {[%clk 0:02:36.6]} 16. Kxg2 {[%clk 0:02:11.7]} 16... Nd5 {[%clk 0:02:38]}
17. Qf3 {[%clk 0:02:10.1]} 17... Bf6 {[%clk 0:02:35.1]} 18. Bb2 {[%clk 0:02:07]}
18... O-O {[%clk 0:02:34.9]} 19. Ne4 {[%clk 0:01:51.3]} 19... Nxe4 {[%clk
0:02:21.7]} 20. Qxe4 {[%clk 0:01:53.2]} 20... Nc3 {[%clk 0:02:12]} 21. Bxc3
{[%clk 0:01:54.2]} 21... Rxc3 {[%clk 0:02:06]} 22. Rfd1 {[%clk 0:01:55]} 22...
Qb6 {[%clk 0:02:06.8]} 23. Rab1 {[%clk 0:01:50.7]} 23... Rd8 {[%clk 0:01:58.5]}
24. Nf3 {[%clk 0:01:45.5]} 24... a5 {[%clk 0:01:22.1]} 25. Nd2 {[%clk
0:01:41.6]} 25... Qd4 {[%clk 0:01:09.3]} 26. e3 {[%clk 0:01:21.6]} 26... Qd3
{[%clk 0:00:56.3]} 27. Qf3 {[%clk 0:01:10.8]} 27... Qf5 {[%clk 0:00:28]} 28. Ne4
{[%clk 0:00:53]} 28... Rcd3 {[%clk 0:00:17.2]} 29. Rxd3 {[%clk 0:00:49.3]} 29...
Rxd3 {[%clk 0:00:19.1]} 30. Qxf5 {[%clk 0:00:42.6]} 30... exf5 {[%clk
0:00:20.2]} 31. Nxf6+ {[%clk 0:00:32.9]} 31... gxf6 {[%clk 0:00:22.1]} 32. Rb2
{[%clk 0:00:34.6]} 32... Kg7 {[%clk 0:00:22.8]} 33. Kf3 {[%clk 0:00:36.2]} 33...
Kg6 {[%clk 0:00:24.4]} 34. Kf4 {[%clk 0:00:37.8]} 34... Rc3 {[%clk 0:00:24]} 35.
h4 {[%clk 0:00:37.2]} 35... h5 {[%clk 0:00:24.8]} 36. Kf3 {[%clk 0:00:32.4]}
36... Rd3 {[%clk 0:00:25]} 37. Ke2 {[%clk 0:00:33.4]} 37... Rc3 {[%clk
0:00:26.6]} 38. Kd2 {[%clk 0:00:30.8]} 38... Kg7 {[%clk 0:00:23.4]} 39. Rb1
{[%clk 0:00:29.9]} 39... Kg6 {[%clk 0:00:24.1]} 40. Ke2 {[%clk 0:00:29.5]} 40...
Kg7 {[%clk 0:00:22.4]} 41. Kf3 {[%clk 0:00:21.6]} 41... Kg6 {[%clk 0:00:22.8]}
42. Rb2 {[%clk 0:00:23.1]} 42... Rd3 {[%clk 0:00:23.5]} 43. Kf4 {[%clk
0:00:21.8]} 43... Rc3 {[%clk 0:00:23.6]} 44. Kf3 {[%clk 0:00:23.2]} 44... Rd3
{[%clk 0:00:24.5]} 45. Kf4 {[%clk 0:00:21.4]} 45... Rc3 {[%clk 0:00:25.8]} 46.
Rb1 {[%clk 0:00:16]} 46... Rd3 {[%clk 0:00:26.1]} 47. Rb2 {[%clk 0:00:11.5]}
1/2-1/2

[Event "*** Titled Tuesday 3|2 Blitz"]
[Site "Chess.com"]
[Date "2016.10.04"]
[Round "4"]
[White "brightthunder"]
[Black "CheckThis4"]
[Result "1-0"]
[WhiteElo "2421"]
[BlackElo "2337"]
[TimeControl "180+2"]
[EndTime "11:49:59 PDT"]
[Termination "brightthunder won by checkmate"]

1. e4 {[%clk 0:03:01.9]} 1... c5 {[%clk 0:03:00]} 2. Nf3 {[%clk 0:03:02.5]} 2...
d6 {[%clk 0:03:00.6]} 3. d4 {[%clk 0:03:04]} 3... cxd4 {[%clk 0:03:01.3]} 4.
Nxd4 {[%clk 0:03:05.9]} 4... Nf6 {[%clk 0:03:02.5]} 5. Nc3 {[%clk 0:03:07.2]}
5... g6 {[%clk 0:03:03.8]} 6. Be3 {[%clk 0:03:07.6]} 6... Bg7 {[%clk 0:03:04.9]}
7. f3 {[%clk 0:03:07.4]} 7... Nc6 {[%clk 0:03:05.8]} 8. Qd2 {[%clk 0:03:08.7]}
8... O-O {[%clk 0:03:06.7]} 9. Bc4 {[%clk 0:03:10.2]} 9... Bd7 {[%clk
0:03:06.8]} 10. O-O-O {[%clk 0:03:11]} 10... Rc8 {[%clk 0:03:07.3]} 11. Bb3
{[%clk 0:03:11.9]} 11... Nxd4 {[%clk 0:03:08.4]} 12. Bxd4 {[%clk 0:03:11.9]}
12... b5 {[%clk 0:03:09.5]} 13. Nd5 {[%clk 0:03:07.9]} 13... Nxd5 {[%clk
0:03:09.7]} 14. Bxg7 {[%clk 0:03:09.4]} 14... Kxg7 {[%clk 0:03:11.2]} 15. exd5
{[%clk 0:03:11]} 15... a5 {[%clk 0:03:10.9]} 16. a3 {[%clk 0:03:12.3]} 16... Kg8
{[%clk 0:03:02.8]} 17. Rhe1 {[%clk 0:03:11.9]} 17... Rc5 {[%clk 0:02:52.2]} 18.
Qe3 {[%clk 0:03:12.4]} 18... Re8 {[%clk 0:02:35.4]} 19. g4 {[%clk 0:02:50.2]}
19... Qc7 {[%clk 0:02:32.3]} 20. Rd2 {[%clk 0:02:39.1]} 20... b4 {[%clk
0:02:20.8]} 21. a4 {[%clk 0:02:39]} 21... e5 {[%clk 0:02:09.4]} 22. dxe6 {[%clk
0:02:37]} 22... Bxe6 {[%clk 0:02:08.7]} 23. Qd4 {[%clk 0:02:12.1]} 23... Rc8
{[%clk 0:02:00.3]} 24. Rxe6 {[%clk 0:01:58.3]} 24... fxe6 {[%clk 0:01:49.8]} 25.
Bxe6+ {[%clk 0:01:57.5]} 25... Kf8 {[%clk 0:01:51]} 26. Qf6+ {[%clk 0:01:29.6]}
26... Ke8 {[%clk 0:01:51.3]} 27. Bxc8 {[%clk 0:01:29.6]} 27... Qxc8 {[%clk
0:01:48.2]} 28. Qh8+ {[%clk 0:01:05.8]} 28... Kd7 {[%clk 0:01:46.2]} 29. Qxh7+
{[%clk 0:01:07.7]} 29... Kc6 {[%clk 0:01:45.7]} 30. Qxg6 {[%clk 0:01:09.5]}
30... Qf8 {[%clk 0:01:43.6]} 31. Qe4+ {[%clk 0:01:07.6]} 31... Kb6 {[%clk
0:01:37.8]} 32. h4 {[%clk 0:01:05.6]} 32... Re5 {[%clk 0:01:15.7]} 33. Qd4+
{[%clk 0:01:03.8]} 33... Kc7 {[%clk 0:01:16.6]} 34. b3 {[%clk 0:00:57.6]} 34...
Rc5 {[%clk 0:01:10.4]} 35. Kb2 {[%clk 0:00:54.9]} 35... Rc6 {[%clk 0:01:11.5]}
36. f4 {[%clk 0:00:52.9]} 36... Rc5 {[%clk 0:01:07]} 37. h5 {[%clk 0:00:49.3]}
37... Kb7 {[%clk 0:01:01]} 38. g5 {[%clk 0:00:46.4]} 38... Qf5 {[%clk
0:00:45.8]} 39. h6 {[%clk 0:00:43.2]} 39... Qh3 {[%clk 0:00:46.7]} 40. Qxd6
{[%clk 0:00:35.9]} 40... Qc3+ {[%clk 0:00:46.2]} 41. Ka2 {[%clk 0:00:36.5]}
41... Rc6 {[%clk 0:00:45.9]} 42. Qd5 {[%clk 0:00:36]} 42... Kb6 {[%clk
0:00:44.4]} 43. h7 {[%clk 0:00:36.1]} 43... Rc5 {[%clk 0:00:40.4]} 44. Qd8+
{[%clk 0:00:35.6]} 44... Ka7 {[%clk 0:00:28.6]} 45. h8=Q {[%clk 0:00:32.7]}
45... Rc8 {[%clk 0:00:20.5]} 46. Qxc3 {[%clk 0:00:27.1]} 46... bxc3 {[%clk
0:00:18.2]} 47. Rd7+ {[%clk 0:00:26.1]} 47... Ka6 {[%clk 0:00:17.6]} 48. Qxc8+
{[%clk 0:00:26.9]} 48... Kb6 {[%clk 0:00:19.5]} 49. Rd6+ {[%clk 0:00:27.1]}
49... Ka7 {[%clk 0:00:20.3]} 50. Ra6# {[%clk 0:00:26]} 1-0

[Event "*** Titled Tuesday 3|2 Blitz"]
[Site "Chess.com"]
[Date "2016.10.04"]
[Round "4"]
[White "annakantane"]
[Black "GMOratovsky"]
[Result "1/2-1/2"]
[WhiteElo "2252"]
[BlackElo "2396"]
[TimeControl "180+2"]
[EndTime "11:49:59 PDT"]
[Termination "Game drawn - insufficient material"]

1. e4 {[%clk 0:03:02]} 1... d6 {[%clk 0:03:00.6]} 2. d4 {[%clk 0:03:00.2]} 2...
Nf6 {[%clk 0:03:01.6]} 3. Nc3 {[%clk 0:03:01.1]} 3... e5 {[%clk 0:03:02.3]} 4.
Nf3 {[%clk 0:03:01]} 4... Nbd7 {[%clk 0:03:01.2]} 5. Bc4 {[%clk 0:03:01.4]} 5...
exd4 {[%clk 0:03:02.2]} 6. Nxd4 {[%clk 0:03:01.8]} 6... Nb6 {[%clk 0:03:02.1]}
7. Be2 {[%clk 0:03:02.7]} 7... Be7 {[%clk 0:03:02.6]} 8. O-O {[%clk 0:02:50.7]}
8... O-O {[%clk 0:03:03.7]} 9. f4 {[%clk 0:02:48.6]} 9... c6 {[%clk 0:02:45.6]}
10. Bf3 {[%clk 0:02:45.4]} 10... g6 {[%clk 0:02:40.6]} 11. a4 {[%clk 0:02:33.4]}
11... a5 {[%clk 0:02:38.2]} 12. b3 {[%clk 0:02:25.8]} 12... d5 {[%clk
0:02:38.5]} 13. e5 {[%clk 0:02:13.9]} 13... Ne8 {[%clk 0:02:31.2]} 14. Nce2
{[%clk 0:01:31.8]} 14... Ng7 {[%clk 0:02:31.1]} 15. Bb2 {[%clk 0:01:26.9]} 15...
f6 {[%clk 0:02:20.9]} 16. exf6 {[%clk 0:01:13.9]} 16... Bxf6 {[%clk 0:02:22.8]}
17. Qd2 {[%clk 0:01:07.7]} 17... Nf5 {[%clk 0:02:21.7]} 18. Ba3 {[%clk
0:00:39.3]} 18... Re8 {[%clk 0:02:20.1]} 19. Nxf5 {[%clk 0:00:39.8]} 19... Bxf5
{[%clk 0:02:22]} 20. Rae1 {[%clk 0:00:31.9]} 20... Nd7 {[%clk 0:02:18.3]} 21.
Kh1 {[%clk 0:00:29.6]} 21... Qb6 {[%clk 0:02:19.4]} 22. Rd1 {[%clk 0:00:18.9]}
22... Qe3 {[%clk 0:02:15.7]} 23. Nd4 {[%clk 0:00:17.7]} 23... Qxd2 {[%clk
0:02:10.4]} 24. Rxd2 {[%clk 0:00:19.6]} 24... Bxd4 {[%clk 0:02:11.5]} 25. Rxd4
{[%clk 0:00:20.2]} 25... Bxc2 {[%clk 0:02:13.1]} 26. b4 {[%clk 0:00:14.8]} 26...
axb4 {[%clk 0:02:13.3]} 27. Rxb4 {[%clk 0:00:15.1]} 27... b5 {[%clk 0:01:42.3]}
28. Bb2 {[%clk 0:00:14]} 28... Rxa4 {[%clk 0:01:39.1]} 29. Rxa4 {[%clk 0:00:13]}
29... bxa4 {[%clk 0:01:39.3]} 30. Rc1 {[%clk 0:00:13.1]} 30... Nb6 {[%clk
0:01:33.1]} 31. h4 {[%clk 0:00:12.7]} 31... Bb3 {[%clk 0:01:29.3]} 32. Rxc6
{[%clk 0:00:13.4]} 32... Nd7 {[%clk 0:01:19.4]} 33. Rc7 {[%clk 0:00:13.7]} 33...
Re7 {[%clk 0:01:09.9]} 34. Bg4 {[%clk 0:00:12.9]} 34... Nf6 {[%clk 0:00:45.6]}
35. Rxe7 {[%clk 0:00:13]} 35... Nxg4 {[%clk 0:00:47.2]} 36. Rg7+ {[%clk
0:00:12.9]} 36... Kf8 {[%clk 0:00:48.7]} 37. Rxh7 {[%clk 0:00:14]} 37... d4
{[%clk 0:00:48.4]} 38. Bxd4 {[%clk 0:00:13.8]} 38... Bf7 {[%clk 0:00:43.6]} 39.
Rh8+ {[%clk 0:00:14.3]} 39... Bg8 {[%clk 0:00:43.7]} 40. Bc5+ {[%clk 0:00:11.1]}
40... Kf7 {[%clk 0:00:44.5]} 41. Ba3 {[%clk 0:00:11]} 41... Ne3 {[%clk
0:00:29.6]} 42. g3 {[%clk 0:00:11.7]} 42... Nc2 {[%clk 0:00:30.1]} 43. Bb2
{[%clk 0:00:11.8]} 43... a3 {[%clk 0:00:31.6]} 44. Bxa3 {[%clk 0:00:12.6]} 44...
Nxa3 {[%clk 0:00:33.5]} 45. h5 {[%clk 0:00:12.8]} 45... Kg7 {[%clk 0:00:33.6]}
46. Rxg8+ {[%clk 0:00:13.2]} 46... Kxg8 {[%clk 0:00:34.9]} 47. hxg6 {[%clk
0:00:14.9]} 47... Kg7 {[%clk 0:00:36.2]} 48. f5 {[%clk 0:00:16.1]} 48... Nc4
{[%clk 0:00:37.8]} 49. g4 {[%clk 0:00:15.3]} 49... Ne5 {[%clk 0:00:38.4]} 50.
Kg2 {[%clk 0:00:16.4]} 50... Nxg4 {[%clk 0:00:39.6]} 51. f6+ {[%clk 0:00:15.1]}
51... Nxf6 {[%clk 0:00:39.1]} 52. Kg3 {[%clk 0:00:16.3]} 52... Kxg6 {[%clk
0:00:40.4]} 1/2-1/2

[Event "*** Titled Tuesday 3|2 Blitz"]
[Site "Chess.com"]
[Date "2016.10.04"]
[Round "4"]
[White "GMNeiksans"]
[Black "Kubas1010"]
[Result "1/2-1/2"]
[WhiteElo "2638"]
[BlackElo "2470"]
[TimeControl "180+2"]
[EndTime "11:50:05 PDT"]
[Termination "Game drawn by stalemate"]

1. e4 {[%clk 0:03:02]} 1... e5 {[%clk 0:03:00]} 2. Nf3 {[%clk 0:03:02.5]} 2...
Nc6 {[%clk 0:03:00.8]} 3. d4 {[%clk 0:03:02.9]} 3... exd4 {[%clk 0:03:01.5]} 4.
Nxd4 {[%clk 0:03:04.2]} 4... g6 {[%clk 0:03:03]} 5. Nxc6 {[%clk 0:02:48.4]} 5...
bxc6 {[%clk 0:03:03.5]} 6. Qd4 {[%clk 0:02:47.4]} 6... Qf6 {[%clk 0:03:04.1]} 7.
Be3 {[%clk 0:02:36.7]} 7... Bg7 {[%clk 0:03:01.9]} 8. c3 {[%clk 0:02:32.8]} 8...
Qxd4 {[%clk 0:02:28.8]} 9. Bxd4 {[%clk 0:02:33.3]} 9... Nf6 {[%clk 0:02:11.6]}
10. Nd2 {[%clk 0:02:30.7]} 10... O-O {[%clk 0:02:11.7]} 11. O-O-O {[%clk
0:02:19.1]} 11... Re8 {[%clk 0:02:12]} 12. f3 {[%clk 0:02:17.7]} 12... d6 {[%clk
0:02:12]} 13. Bc4 {[%clk 0:02:14.6]} 13... Be6 {[%clk 0:02:07.8]} 14. Bxe6
{[%clk 0:02:14.8]} 14... Rxe6 {[%clk 0:02:08]} 15. Nb3 {[%clk 0:02:03]} 15... a5
{[%clk 0:02:02]} 16. a4 {[%clk 0:01:57.1]} 16... Bh6+ {[%clk 0:01:54.6]} 17. Kc2
{[%clk 0:01:57.6]} 17... Nd7 {[%clk 0:01:54]} 18. h4 {[%clk 0:01:49.7]} 18... c5
{[%clk 0:01:52.8]} 19. Bf2 {[%clk 0:01:48.6]} 19... Bg7 {[%clk 0:01:46.7]} 20.
h5 {[%clk 0:01:38.8]} 20... Nb6 {[%clk 0:01:47]} 21. hxg6 {[%clk 0:01:34.1]}
21... hxg6 {[%clk 0:01:47.5]} 22. Rhe1 {[%clk 0:01:03.6]} 22... Kf8 {[%clk
0:01:14.6]} 23. Ra1 {[%clk 0:01:00]} 23... Nc4 {[%clk 0:01:13.4]} 24. Nd2 {[%clk
0:00:57.3]} 24... Nxd2 {[%clk 0:01:00.3]} 25. Kxd2 {[%clk 0:00:58.3]} 25... Rb8
{[%clk 0:01:01.3]} 26. Rab1 {[%clk 0:00:55.3]} 26... Ke7 {[%clk 0:00:57.6]} 27.
Kd3 {[%clk 0:00:52.8]} 27... Kd7 {[%clk 0:00:57.4]} 28. Kc4 {[%clk 0:00:52]}
28... Kc6 {[%clk 0:00:58.5]} 29. b4 {[%clk 0:00:47.8]} 29... cxb4 {[%clk
0:00:50.3]} 30. cxb4 {[%clk 0:00:48.9]} 30... axb4 {[%clk 0:00:45]} 31. Rxb4
{[%clk 0:00:49.9]} 31... Rxb4+ {[%clk 0:00:39.6]} 32. Kxb4 {[%clk 0:00:51.1]}
32... f5 {[%clk 0:00:40.6]} 33. exf5 {[%clk 0:00:48.2]} 33... Rxe1 {[%clk
0:00:40.9]} 34. Bxe1 {[%clk 0:00:49.4]} 34... gxf5 {[%clk 0:00:42.8]} 35. g4
{[%clk 0:00:45.7]} 35... fxg4 {[%clk 0:00:43.3]} 36. fxg4 {[%clk 0:00:47.1]}
36... Kb6 {[%clk 0:00:43.7]} 37. Bc3 {[%clk 0:00:41.1]} 37... c5+ {[%clk
0:00:43.6]} 38. Kb3 {[%clk 0:00:42.3]} 38... Bh6 {[%clk 0:00:42.3]} 39. Bf6
{[%clk 0:00:43.3]} 39... d5 {[%clk 0:00:42.8]} 40. Bd8+ {[%clk 0:00:29.5]} 40...
Ka6 {[%clk 0:00:43.1]} 41. a5 {[%clk 0:00:27.2]} 41... Bd2 {[%clk 0:00:41.2]}
42. Ka4 {[%clk 0:00:22.2]} 42... c4 {[%clk 0:00:39.7]} 43. Bf6 {[%clk
0:00:14.5]} 43... Be3 {[%clk 0:00:37]} 44. g5 {[%clk 0:00:15]} 44... Bxg5 {[%clk
0:00:35.1]} 45. Bxg5 {[%clk 0:00:15.9]} 45... d4 {[%clk 0:00:36.7]} 46. Bf6
{[%clk 0:00:15.9]} 46... c3 {[%clk 0:00:33.4]} 47. Bxd4 {[%clk 0:00:16.7]} 47...
c2 {[%clk 0:00:34.9]} 48. Bb2 {[%clk 0:00:17.8]} 48... c1=Q {[%clk 0:00:34.4]}
49. Bxc1 {[%clk 0:00:19]} 49... Kb7 {[%clk 0:00:35.4]} 50. Kb5 {[%clk
0:00:20.2]} 50... Ka7 {[%clk 0:00:36.6]} 51. a6 {[%clk 0:00:21.6]} 51... Ka8
{[%clk 0:00:37.7]} 52. Kb6 {[%clk 0:00:23]} 52... Kb8 {[%clk 0:00:39]} 53. a7+
{[%clk 0:00:24.6]} 53... Ka8 {[%clk 0:00:40.4]} 54. Ka6 {[%clk 0:00:26.5]}
1/2-1/2

[Event "*** Titled Tuesday 3|2 Blitz"]
[Site "Chess.com"]
[Date "2016.10.04"]
[Round "4"]
[White "Mepetmepe"]
[Black "keisyzrk"]
[Result "0-1"]
[WhiteElo "2316"]
[BlackElo "2280"]
[TimeControl "180+2"]
[EndTime "11:50:15 PDT"]
[Termination "keisyzrk won by resignation"]

1. Nf3 {[%clk 0:03:01.9]} 1... Nf6 {[%clk 0:03:00.7]} 2. c4 {[%clk 0:03:02.5]}
2... e6 {[%clk 0:02:56.2]} 3. g3 {[%clk 0:03:03.1]} 3... b6 {[%clk 0:02:56.6]}
4. Bg2 {[%clk 0:03:05]} 4... Bb7 {[%clk 0:02:57.9]} 5. O-O {[%clk 0:03:06.2]}
5... c5 {[%clk 0:02:59.4]} 6. Nc3 {[%clk 0:03:08.1]} 6... Be7 {[%clk 0:02:59.5]}
7. Re1 {[%clk 0:03:09.6]} 7... O-O {[%clk 0:02:57.9]} 8. e4 {[%clk 0:03:10.8]}
8... d6 {[%clk 0:02:59.3]} 9. d4 {[%clk 0:03:11.7]} 9... cxd4 {[%clk 0:02:59.7]}
10. Nxd4 {[%clk 0:03:13.6]} 10... Nbd7 {[%clk 0:03:00.9]} 11. Be3 {[%clk
0:03:13.4]} 11... a6 {[%clk 0:03:01.6]} 12. f4 {[%clk 0:03:14.6]} 12... Rc8
{[%clk 0:03:02.6]} 13. Bf2 {[%clk 0:02:45.4]} 13... Qc7 {[%clk 0:02:38.4]} 14.
Rc1 {[%clk 0:02:45.2]} 14... Qb8 {[%clk 0:02:34.4]} 15. e5 {[%clk 0:02:35.2]}
15... Ne8 {[%clk 0:02:21.8]} 16. Nf3 {[%clk 0:01:36.6]} 16... Rxc4 {[%clk
0:02:05]} 17. Qd3 {[%clk 0:01:31.1]} 17... Rc8 {[%clk 0:01:52.9]} 18. Ne4 {[%clk
0:01:32.3]} 18... Nc5 {[%clk 0:01:49.5]} 19. Rxc5 {[%clk 0:01:14.7]} 19... dxc5
{[%clk 0:01:49.3]} 20. Nfg5 {[%clk 0:01:08.9]} 20... g6 {[%clk 0:01:39.5]} 21.
g4 {[%clk 0:01:07.3]} 21... h6 {[%clk 0:01:18.3]} 22. Nf3 {[%clk 0:01:03.6]}
22... Rd8 {[%clk 0:01:15.5]} 23. Qe2 {[%clk 0:01:04.1]} 23... Qa8 {[%clk
0:01:10.9]} 24. Bh4 {[%clk 0:00:54]} 24... Bxh4 {[%clk 0:00:52.9]} 25. Nxh4
{[%clk 0:00:55.9]} 25... Rd4 {[%clk 0:00:53]} 26. Nf6+ {[%clk 0:00:39.7]} 26...
Nxf6 {[%clk 0:00:52.8]} 27. exf6 {[%clk 0:00:41.6]} 27... Bxg2 {[%clk
0:00:52.7]} 28. Nxg2 {[%clk 0:00:42.5]} 28... Rfd8 {[%clk 0:00:52.4]} 29. g5
{[%clk 0:00:18.4]} 29... Rd2 {[%clk 0:00:50.7]} 30. Qg4 {[%clk 0:00:19.4]} 30...
h5 {[%clk 0:00:50.4]} 31. Qh3 {[%clk 0:00:20.2]} 31... Qd5 {[%clk 0:00:41.9]}
32. Ne3 {[%clk 0:00:18.8]} 32... Qd4 {[%clk 0:00:40.6]} 33. Qf3 {[%clk
0:00:16.9]} 33... Rxb2 {[%clk 0:00:39.7]} 34. Kf1 {[%clk 0:00:17.8]} 34... Rxa2
{[%clk 0:00:39.9]} 35. f5 {[%clk 0:00:19.1]} 35... exf5 {[%clk 0:00:39.6]} 36.
Ng2 {[%clk 0:00:08.7]} 36... Ra1 {[%clk 0:00:33.3]} 37. Nf4 {[%clk 0:00:08.5]}
37... Rxe1+ {[%clk 0:00:34]} 38. Kxe1 {[%clk 0:00:10.4]} 38... Re8+ {[%clk
0:00:34.1]} 39. Kf1 {[%clk 0:00:11.3]} 39... Qc4+ {[%clk 0:00:33.2]} 40. Kf2
{[%clk 0:00:10]} 40... Qc2+ {[%clk 0:00:33.2]} 41. Kg3 {[%clk 0:00:10.3]} 41...
Qd2 {[%clk 0:00:24.5]} 42. Nd5 {[%clk 0:00:10.5]} 42... Re5 {[%clk 0:00:21.2]}
43. Ne7+ {[%clk 0:00:10.3]} 43... Kh7 {[%clk 0:00:22.3]} 44. h4 {[%clk
0:00:08.1]} 44... Re3 {[%clk 0:00:23.2]} 0-1

[Event "*** Titled Tuesday 3|2 Blitz"]
[Site "Chess.com"]
[Date "2016.10.04"]
[Round "4"]
[White "AdrianaNikolova"]
[Black "Malev212"]
[Result "1-0"]
[WhiteElo "2260"]
[BlackElo "2311"]
[TimeControl "180+2"]
[EndTime "11:50:23 PDT"]
[Termination "AdrianaNikolova won by resignation"]

1. e4 {[%clk 0:03:01.9]} 1... c5 {[%clk 0:03:00]} 2. c3 {[%clk 0:03:02.6]} 2...
g6 {[%clk 0:02:56.2]} 3. d4 {[%clk 0:03:02.7]} 3... cxd4 {[%clk 0:02:57.6]} 4.
cxd4 {[%clk 0:03:04.6]} 4... d5 {[%clk 0:02:58.8]} 5. e5 {[%clk 0:03:03.9]} 5...
Nc6 {[%clk 0:02:59.8]} 6. Nc3 {[%clk 0:03:05.2]} 6... Bg7 {[%clk 0:02:58.8]} 7.
Bb5 {[%clk 0:03:05.9]} 7... Bd7 {[%clk 0:02:57.9]} 8. Bf4 {[%clk 0:03:06.2]}
8... a6 {[%clk 0:02:57.1]} 9. Bxc6 {[%clk 0:03:06.6]} 9... Bxc6 {[%clk
0:02:57.5]} 10. Nf3 {[%clk 0:02:47.7]} 10... h6 {[%clk 0:02:52.2]} 11. O-O
{[%clk 0:02:36.1]} 11... e6 {[%clk 0:02:53.1]} 12. a4 {[%clk 0:02:35.4]} 12...
Ne7 {[%clk 0:02:53.4]} 13. b4 {[%clk 0:02:36.3]} 13... Bd7 {[%clk 0:02:50.4]}
14. Qd2 {[%clk 0:02:34.5]} 14... Nc8 {[%clk 0:02:45.1]} 15. h4 {[%clk
0:02:19.2]} 15... Nb6 {[%clk 0:02:43.2]} 16. Qd3 {[%clk 0:02:11.3]} 16... Rc8
{[%clk 0:02:42.6]} 17. b5 {[%clk 0:02:02.8]} 17... a5 {[%clk 0:02:42.2]} 18. Ne2
{[%clk 0:01:59.7]} 18... Bf8 {[%clk 0:02:40.2]} 19. Rfc1 {[%clk 0:01:48.5]}
19... Rc4 {[%clk 0:02:38.2]} 20. Bd2 {[%clk 0:01:43.8]} 20... Rxc1+ {[%clk
0:02:32.2]} 21. Nxc1 {[%clk 0:01:40.3]} 21... Nc4 {[%clk 0:02:32.4]} 22. Nb3
{[%clk 0:01:37.6]} 22... Be7 {[%clk 0:02:30.9]} 23. Nc5 {[%clk 0:01:33.1]} 23...
b6 {[%clk 0:02:28.4]} 24. Nb7 {[%clk 0:01:17.4]} 24... Qb8 {[%clk 0:02:25.4]}
25. Nd6+ {[%clk 0:01:17.5]} 25... Bxd6 {[%clk 0:02:18.9]} 26. exd6 {[%clk
0:01:19.4]} 26... Qxd6 {[%clk 0:02:19.3]} 27. g3 {[%clk 0:01:15.1]} 27... Kd8
{[%clk 0:02:14.8]} 28. Bf4 {[%clk 0:01:14.8]} 28... Qb4 {[%clk 0:02:14.7]} 29.
Ne5 {[%clk 0:01:05.7]} 29... Be8 {[%clk 0:02:06.2]} 30. Rc1 {[%clk 0:00:55.5]}
30... Qxa4 {[%clk 0:02:04.1]} 31. Rxc4 {[%clk 0:00:42.4]} 31... dxc4 {[%clk
0:01:53.8]} 32. Qe4 {[%clk 0:00:43]} 32... Qxb5 {[%clk 0:01:53.7]} 33. Qa8+
{[%clk 0:00:24.7]} 33... Ke7 {[%clk 0:01:52.2]} 34. Qb8 {[%clk 0:00:20.4]} 34...
Qd5 {[%clk 0:01:46.4]} 35. Nxc4 {[%clk 0:00:13.3]} 35... Bc6 {[%clk 0:01:38.3]}
36. Qc7+ {[%clk 0:00:05.6]} 36... Kf8 {[%clk 0:01:37]} 37. f3 {[%clk 0:00:03.9]}
37... Qxd4+ {[%clk 0:01:24.4]} 38. Kh2 {[%clk 0:00:04.2]} 38... Qf2+ {[%clk
0:01:21.8]} 39. Kh3 {[%clk 0:00:05.3]} 39... Qf1+ {[%clk 0:01:20.8]} 40. Kh2
{[%clk 0:00:06.5]} 40... Qe2+ {[%clk 0:00:57.9]} 41. Kh3 {[%clk 0:00:07]} 41...
Bxf3 {[%clk 0:00:51.4]} 42. Qb8+ {[%clk 0:00:07.5]} 42... Ke7 {[%clk 0:00:45.1]}
43. Qd6+ {[%clk 0:00:07.2]} 43... Kf6 {[%clk 0:00:42.6]} 44. Qd4+ {[%clk
0:00:07]} 44... e5 {[%clk 0:00:41.7]} 45. Bxe5+ {[%clk 0:00:07.5]} 45... Ke6
{[%clk 0:00:38]} 46. Qd6+ {[%clk 0:00:08]} 46... Kf5 {[%clk 0:00:38.9]} 47. Qf6+
{[%clk 0:00:07.2]} 47... Ke4 {[%clk 0:00:39.6]} 48. Qf4+ {[%clk 0:00:06.7]}
48... Kd3 {[%clk 0:00:37.4]} 49. Qd4+ {[%clk 0:00:07.5]} 49... Kc2 {[%clk
0:00:37.5]} 50. Qc3+ {[%clk 0:00:03.3]} 50... Kb1 {[%clk 0:00:37.4]} 51. Nd2+
{[%clk 0:00:04.8]} 51... Qxd2 {[%clk 0:00:32.8]} 52. Qxd2 {[%clk 0:00:06.7]} 1-0